Cogmind - Beta 10 X2 @@@ ROGUE MODE // 2020.08.08 @ 02:52:01 Player: Fleshy Vegetable Bird Result: Destroyed by G-67 Veteran with Electrolaser Performance ------------- Evolutions (7) 3500 Regions Visited (24) 4800 Robots Destroyed (231) 1155 Value Destroyed (14280) 14280 Prototype IDs (36) 720 Alien Tech Used (0) 0 Bonus (9843) 9843 TOTAL SCORE: 34298 Bonus ------- High Alert Combat Kills 1386 Follower Combat Kills 3159 Entered Garrisons 1800 Used RIF Installer 4500 Aligned with FarCom 300 Friendly Fire -1302 Cogmind --------- Core Integrity 0/1300 Matter 178/300 Energy 90/100 System Corruption 25% Temperature Cool (21) Movement Core (100) Ox1 Location -3/Garrison Parts ------- > --- POWER (2) -------- (None) > --- PROPULSION (4) --- (None) > --- UTILITY (12) ----- Relay Coupler [NC] (2) Relay Coupler [Grunt] (17) Relay Coupler [Grunt] (27) Relay Coupler [Brawler] (27) Relay Coupler [Duelist] (16) Relay Coupler [Duelist] (31) Relay Coupler [Specialist] (24) > --- WEAPON (3) ------- Advanced Remote Datajack > --- INVENTORY (4) ---- Experimental Power Amplifier Advanced Remote Datajack Force Lance Peak State ------------ > --- POWER ------------ Micro Fission Core Light Antimatter Reactor > --- PROPULSION ------- Improved Heavy Siege Treads Biometal Heavy Treads > --- UTILITY ---------- Advanced Heat Sink High-capacity Storage Unit High-capacity Storage Unit High-capacity Storage Unit Advanced Hacking Suite Relay Coupler [NC] Relay Coupler [Swarmer] Relay Coupler [Grunt] Relay Coupler [Brawler] Relay Coupler [Duelist] Relay Coupler [Sentry] Relay Coupler [Specialist] > --- WEAPON ----------- Nova Cannon Railgun Railgun > --- INVENTORY -------- Light Particle Reactor Advanced Heavy Treads Improved Heavy Siege Treads Experimental Power Amplifier Energy Well Matter Compressor Long-range Sensor Array Advanced Terrain Scanner Advanced Thermal Shield Advanced Thermal Shield EM Shield Relay Coupler [Swarmer] Relay Coupler [Grunt] Relay Coupler [Duelist] Relay Coupler [Demolisher] Heavy Neutron Cannon Heavy Neutron Cannon Railgun Linear Accelerator Improved Remote Datajack Advanced Remote Datajack Advanced Remote Datajack Force Lance Force Lance [Rating: 121] Favorites ----------- Power Light Angular Momentum Engine Engine Light Angular Momentum Engine Power Core Enhanced Nuclear Core Reactor Light Antimatter Reactor Propulsion Light Treads Treads Light Treads Leg Carbon-fiber Leg Wheel Wheel Utility High-capacity Storage Unit Device Advanced Heat Sink Storage High-capacity Storage Unit Processor Target Analyzer Hackware Relay Coupler [Duelist] Protection Improved Medium Armor Plating Weapon Shock Bomb Launcher Energy Gun EM Pulse Gun Energy Cannon Heavy Neutron Cannon Ballistic Gun Railgun Ballistic Cannon Tri-rail Accelerator Launcher Shock Bomb Launcher Special Weapon Improved Remote Datajack Slashing Weapon Great Axe Special Melee Weapon Improved Datajack Build | -11 -10 -10 -9 -9 -9 -8 -8 -8 -8 -8 -7 -7 -6 -6 -6 -6 -5 -5 -5 -5 -4 -4 -3 -3 ------- Run | Scr Mat Min Mat Min Exi Min Mat Gar Mat Gar Fac Gar Fac Gar Fac Gar Fac Gar Fac Gar Fac Gar Res Gar Slots Evolved 14 | . . . 2 . . . 2 . . . 2 . 2 . . . 2 . . . 2 . 2 . Power 1 | . . . . . . . . . . . . . . . . . . . . . . . 1 . Propulsion 2 | . . . 1 . . . . . . . . . 1 . . . . . . . . . . . Utility 10 | . . . 1 . . . 2 . . . 2 . 1 . . . 2 . . . 1 . 1 . Weapon 1 | . . . . . . . . . . . . . . . . . . . . . 1 . . . Parts Attached 295 | 8 1 2 7 3 1 . 25 5 8 4 10 7 27 30 8 12 18 18 16 23 4 18 39 1 Power 25 | 1 . . 2 . . . 6 . 1 . . . 2 4 1 1 . 1 . 1 1 1 3 . Engine 16 | 1 . . 2 . . . 3 . . . . . 1 4 1 1 . 1 . 1 1 . . . Core 6 | . . . . . . . 3 . 1 . . . 1 . . . . . . . . 1 . . Reactor 3 | . . . . . . . . . . . . . . . . . . . . . . . 3 . Propulsion 57 | 2 . . 2 1 . . 4 1 3 1 3 2 5 8 1 4 5 1 2 5 . 3 4 . Treads 39 | 2 . . 1 . . . 2 1 3 . 3 2 2 2 1 3 2 1 2 5 . 3 4 . Leg 10 | . . . . . . . . . . . . . . 6 . 1 3 . . . . . . . Wheel 8 | . . . 1 1 . . 2 . . 1 . . 3 . . . . . . . . . . . Hover . | . . . . . . . . . . . . . . . . . . . . . . . . . Flight . | . . . . . . . . . . . . . . . . . . . . . . . . . Utility 104 | 3 1 . 2 1 1 . 4 1 . 1 2 2 9 11 4 4 8 5 7 13 2 8 15 . Device 27 | 1 . . 1 . . . . . . 1 . . 3 3 . 1 3 1 2 1 1 1 8 . Storage 16 | 2 1 . 1 . 1 . 2 1 . . . . 1 . . 1 . . 1 3 . 1 1 . Processor 4 | . . . . . . . 1 . . . . . . 1 . . 1 . . . . . 1 . Hackware 41 | . . . . . . . . . . . 1 . 4 5 3 2 3 2 3 8 1 5 4 . Protection 16 | . . . . 1 . . 1 . . . 1 2 1 2 1 . 1 2 1 1 . 1 1 . Artifact . | . . . . . . . . . . . . . . . . . . . . . . . . . Weapon 109 | 2 . 2 1 1 . . 11 3 4 2 5 3 11 7 2 3 5 11 7 4 1 6 17 1 Energy Gun 10 | 2 . . . . . . 3 . . . . . 3 . . . . . 1 . 1 . . . Energy Cannon 24 | . . . 1 . . . 3 1 . . 1 1 . 1 . 1 . 2 4 1 . 2 6 . Ballistic Gun 19 | . . . . 1 . . . . 1 . . . 1 2 . 1 2 6 . . . 1 4 . Ballistic Cannon 6 | . . . . . . . . . . . 1 . . . . . 1 1 . . . 2 1 . Launcher 16 | . . 2 . . . . 1 2 2 2 1 2 3 1 . . . . . . . . . . Special Weapon 18 | . . . . . . . . . . . . . . 1 1 1 1 2 2 2 . 1 6 1 Impact Weapon . | . . . . . . . . . . . . . . . . . . . . . . . . . Slashing Weapon 12 | . . . . . . . 4 . 1 . 2 . 1 1 1 . 1 . . 1 . . . . Piercing Weapon . | . . . . . . . . . . . . . . . . . . . . . . . . . Special Melee Weapon 4 | . . . . . . . . . . . . . 3 1 . . . . . . . . . . Unidentified Prototypes 7 | . . . . . . . 3 . 2 . . . 1 . . . . . 1 . . . . . Parts Lost 76 | . . . 2 2 . . 2 . . 2 . 1 12 9 3 4 3 2 3 4 . 5 22 . Power 12 | . . . 1 . . . 1 . . . . . 1 2 1 . . 1 . . . 1 4 . Propulsion 23 | . . . 1 1 . . . . . 1 . . 3 4 1 3 2 . . 1 . 2 4 . Utility 20 | . . . . . . . . . . 1 . 1 4 1 . . 1 1 2 2 . . 7 . Weapon 21 | . . . . 1 . . 1 . . . . . 4 2 1 1 . . 1 1 . 2 7 . Highest Loss Streak 9 | . . . 2 2 . . 1 . . 1 . 1 5 3 3 2 2 2 1 2 . 4 9 . Average Slot Usage (%) 92 | . 97 99 92 92 100 100 99 100 100 99 92 92 91 81 98 86 90 85 90 89 91 88 84 38 Engine 4 | . 14 14 11 11 11 11 3 . . . . . . 5 5 5 5 4 5 4 5 1 . . Core 3 | . . . . . . . 5 9 9 9 7 7 5 . . . . . . . . 3 3 . Treads 13 | . 28 28 20 16 11 11 9 16 18 18 23 23 14 3 5 10 10 11 13 16 15 11 8 . Leg 2 | . . . . . . . . . . . . . . 6 20 9 8 . . . . . . . Wheel 4 | . . . 8 14 22 22 18 10 9 8 . . 5 1 . . . . . . . . . . Device 2 | . . . 7 6 . . . . . 5 3 . 2 6 . 5 1 5 6 . 2 3 3 . Storage 23 | . 25 28 22 22 22 22 26 34 36 36 30 30 25 20 20 20 17 17 17 18 21 19 13 . Processor 2 | . . . . . . . 9 1 . . . . . 6 6 6 5 5 5 3 . . 2 . Hackware 13 | . . . . . . . . . . . 3 7 12 17 23 20 29 18 22 31 31 31 34 33 Protection 4 | . . . . 4 11 11 9 9 9 3 7 7 10 1 2 . 1 7 4 . . 1 . . Energy Gun 2 | . 28 14 11 5 . . 7 . . . . . 2 . . . . . . . 5 . . . Energy Cannon 2 | . . . 5 11 11 11 . 1 . . 4 . . . . 2 . . 4 5 5 1 5 . Ballistic Gun 2 | . . . . . 11 11 . . . . . . . 3 5 . 1 7 2 . . 3 3 . Launcher 4 | . . 13 5 . . . 1 16 13 18 2 14 2 . . . . . . . . . . . Special Weapon 1 | . . . . . . . . . . . . . . 2 5 2 1 1 2 4 5 5 2 4 Slashing Weapon 1 | . . . . . . . 7 . 3 . 4 . 2 2 1 . . . . . . . . . Naked Turns . | . . . . . . . . . . . . . . . . . . . . . . . . . Heaviest Build 147 | 17 17 18 48 53 81 81 92 127 128 128 137 135 129 133 115 132 125 132 136 136 134 142 147 5 Greatest Support 150 | 40 40 40 40 20 20 20 22 42 42 50 76 76 76 28 45 60 98 140 140 116 116 145 150 3 Greatest Overweight (x) 40 | 4 . . 4 4 4 4 9 10 10 10 1 2 40 37 2 4 4 1 1 1 1 1 33 1 Average Overweight (x) 2 | . . . . 3 3 4 4 5 9 4 1 1 3 7 2 1 1 . . . 1 . . . Largest Inventory Capacity 28 | 8 8 8 14 14 20 20 20 28 28 28 28 28 28 28 28 28 28 28 28 28 28 28 28 4 Average Capacity 24 | 5 7 8 8 14 19 20 20 27 28 28 28 28 28 28 28 28 28 28 28 28 28 28 27 4 Most Carried 28 | 6 8 8 10 14 17 20 20 26 28 28 28 28 28 28 28 28 28 28 28 28 28 28 28 4 Average Carried 23 | 4 7 7 7 12 15 19 19 21 27 27 27 27 26 22 27 24 27 27 26 26 27 26 25 3 Final Capacity 28 | 8 8 8 14 14 20 20 20 28 28 28 28 28 28 28 28 28 28 28 28 28 28 28 4 4 Final Carried 28 | 6 8 8 10 13 17 20 20 26 28 28 28 28 20 28 28 26 28 28 28 27 28 28 4 3 Class Distribution -------------------- 40% | Botlord-Mutant 25% | Bothacker-Mutant 17% | Hauler-Mutant 10% | Mutant 3% | Bothacker-Skirmisher Dominant Class ---------------- Mutant | -10/Materials Mutant | -10/Mines Mutant | -9/Materials Mutant | -9/Mines Hauler-Mutant | -9/Exiles Hauler-Mutant | -8/Mines Hauler-Mutant | -8/Materials Hauler-Mutant | -8/Garrison Bothacker-Mutant | -8/Materials Bothacker-Mutant | -8/Garrison Bothacker-Mutant | -7/Factory Bothacker-Mutant | -7/Garrison Bothacker-Mutant | -6/Factory Bothacker-Mutant | -6/Garrison Botlord-Mutant | -6/Factory Botlord-Mutant | -6/Garrison Botlord-Mutant | -5/Factory Botlord-Mutant | -5/Garrison Botlord-Mutant | -5/Factory Botlord-Mutant | -5/Garrison Botlord-Mutant | -4/Factory Botlord-Mutant | -4/Garrison Botlord-Mutant | -3/Research Botlord-Mutant | -3/Garrison Resources | -11 -10 -10 -9 -9 -9 -8 -8 -8 -8 -8 -7 -7 -6 -6 -6 -6 -5 -5 -5 -5 -4 -4 -3 -3 ----------- Run | Scr Mat Min Mat Min Exi Min Mat Gar Mat Gar Fac Gar Fac Gar Fac Gar Fac Gar Fac Gar Fac Gar Res Gar Matter Collected 7308 | 260 . 90 80 40 . 22 279 274 190 371 139 480 191 778 239 172 708 401 533 499 41 519 1002 . Remotely . | . . . . . . . . . . . . . . . . . . . . . . . . . Salvage Created 9597 | 147 . 93 96 169 . 45 389 677 198 835 259 985 665 522 179 562 723 784 676 66 . 344 1183 . Parts 492 | 9 . 10 8 14 . 4 23 23 11 47 9 54 52 13 6 17 36 23 40 3 . 13 77 . Haulers Intercepted 6 | . . . . . . . 1 . 1 . . . . . 1 . 1 . 1 . . . 1 . Recyclers Shooed 7 | . . 1 . . . . . . . . . . 2 . . . . . 2 . . . 2 . Parts Field Recycled . | . . . . . . . . . . . . . . . . . . . . . . . . . Retrieved Matter . | . . . . . . . . . . . . . . . . . . . . . . . . . Parts Self-Destructed . | . . . . . . . . . . . . . . . . . . . . . . . . . Prevented . | . . . . . . . . . . . . . . . . . . . . . . . . . Kills | -11 -10 -10 -9 -9 -9 -8 -8 -8 -8 -8 -7 -7 -6 -6 -6 -6 -5 -5 -5 -5 -4 -4 -3 -3 ------- Run | Scr Mat Min Mat Min Exi Min Mat Gar Mat Gar Fac Gar Fac Gar Fac Gar Fac Gar Fac Gar Fac Gar Res Gar Combat Hostiles Destroyed 188 | . . 5 3 6 . 1 5 15 4 20 3 19 21 10 . 12 15 14 8 1 . 8 18 . Melee 4 | . . . . . . . . . . . . . 2 2 . . . . . . . . . . Guns 28 | . . 1 1 . . 1 3 . . . . . 4 1 . . 2 5 2 . . . 8 . Cannons 49 | . . . 2 4 . . . 1 . . 2 . . . . 3 12 1 5 1 . 8 10 . AOE 86 | . . 4 . 2 . . 1 10 4 19 . 16 14 5 . 6 1 4 . . . . . . Classes Destroyed 16 | 2 . 2 2 . . 1 3 2 . . 2 . . 1 1 . . . . . . . . . Worker 10 | . . . . . . . . . . . 1 . 3 . 1 . 1 . . . . . 4 . Builder 6 | . . . . . . . 1 . . . . . 2 . . . . . 1 . . . 2 . Tunneler 3 | 3 . . . . . . . . . . . . . . . . . . . . . . . . Hauler 6 | . . . . . . . 1 . 1 . . . . . 1 . 1 . 1 . . . 1 . Recycler 5 | 1 . . . 1 . . . . . . 1 . . . . . 1 . 1 . . . . . Mechanic 1 | . . . . . . . . . . . . . . . 1 . . . . . . . . . Operator 1 | . . . 1 . . . . . . . . . . . . . . . . . . . . . Watcher 5 | . . . 1 . . . 1 . 1 . . . 1 . . . . . 1 . . . . . Swarmer 62 | . . 3 2 6 . . . 4 3 9 . 4 14 . . 10 3 1 1 . . 1 1 . Grunt 64 | . . 2 1 . . . 4 7 1 13 . 8 1 7 . . 5 9 . . . 5 1 . Brawler 3 | . . . . . . . . 1 . . . . 1 . . . . . 1 . . . . . Duelist 2 | . . . . . . . . 2 . . . . . . . . . . . . . . . . Sentry 12 | . . . . . . . 1 1 . . 1 4 1 2 . . . 1 . 1 . . . . Hunter 19 | . . . . . . 1 . . . . 1 3 2 . . 2 . 3 . . . 2 5 . Programmer 29 | . . . . . . . . . . . 1 . 2 . . . 7 . 6 . . . 13 . Behemoth 3 | . . . . . . . . . . . . . . 1 . 1 . . . . . 1 . . Best Kill Streak 10 | 2 . 3 2 4 . 1 4 5 4 3 2 5 7 2 2 10 5 9 5 1 . 4 6 . Combat Bots Only 10 | . . 3 2 3 . 1 3 5 3 3 1 5 5 2 . 10 4 9 4 1 . 4 4 . Max Kills in Single Turn 4 | 1 . 2 2 2 . 1 2 2 2 3 1 3 4 2 1 3 2 3 2 1 . 1 3 . Gunslinging . | . . . . . . . . . . . . . . . . . . . . . . . . . Exploded 4 | . . 2 . 2 . . 1 2 2 3 . 3 4 2 . 2 1 1 . . . . . . Melee 1 | . . . . . . . . . . . . . 1 1 . . . . . . . . . . Uniques/NPCs Destroyed . | . . . . . . . . . . . . . . . . . . . . . . . . . Combat | -11 -10 -10 -9 -9 -9 -8 -8 -8 -8 -8 -7 -7 -6 -6 -6 -6 -5 -5 -5 -5 -4 -4 -3 -3 -------- Run | Scr Mat Min Mat Min Exi Min Mat Gar Mat Gar Fac Gar Fac Gar Fac Gar Fac Gar Fac Gar Fac Gar Res Gar Damage Taken 20800 | . 103 125 261 165 . 13 335 464 98 506 416 471 1926 1615 728 481 920 1514 1285 592 111 1816 6775 80 Core 2986 | . 23 . 13 23 . . 73 68 13 75 13 56 214 298 90 122 151 105 82 89 . 174 1224 80 Absorbed by Shields 488 | . . . . . . . . 23 . . . 27 . 75 . 27 77 106 . 58 . 95 . . Reduced by Siege Mode 1027 | . . . . . . . . . . . . . . . . . . 153 . . . 37 837 . Core Remaining (%) 73 | 100 . 90 . . . 91 . . . 58 . 90 . . . 14 . . . 57 . 84 . . Volleys Fired 700 | 18 . 13 13 12 . 2 22 36 12 32 14 35 36 47 23 22 77 51 48 35 . 54 98 . Largest 3 | 1 . 2 2 2 . 2 2 2 2 2 2 2 2 1 1 1 2 2 2 1 . 2 3 . Hottest 286 | 40 . 70 96 96 . 76 81 72 72 72 116 72 96 250 30 250 60 250 250 110 . 220 286 . Shots Fired 987 | 18 . 15 21 15 . 4 34 63 18 58 28 65 39 45 23 23 79 72 56 38 . 76 197 . Gun 317 | 18 . 9 9 3 . 2 31 . . . . . 26 19 10 4 12 52 18 . . 11 93 . Cannon 278 | . . . 10 12 . 2 . 4 . . 22 . . 7 . 13 43 13 16 15 . 43 78 . Launcher 233 | . . 6 2 . . . 3 59 18 58 6 65 13 3 . . . . . . . . . . Special 159 | . . . . . . . . . . . . . . 16 13 6 24 7 22 23 . 22 26 . Kinetic 317 | . . . . . . 2 9 . . . 11 . 4 15 10 4 55 56 11 . . 28 112 . Thermal 157 | . . . . . . . . 4 . . 11 . . 7 . 13 . 9 16 15 . 23 59 . Explosive 20 | . . 6 2 . . . . . . . . . 9 3 . . . . . . . . . . Electromagnetic 334 | 18 . 9 19 15 . 2 25 59 18 58 6 65 26 4 . . . . 7 . . 3 . . Robot Hit Streak 30 | 4 . 5 4 5 . 9 11 7 5 5 6 7 4 8 9 7 12 29 30 13 . 16 28 . Robot Miss Streak 5 | 4 . 3 3 3 . . 2 2 3 3 2 2 2 3 2 5 4 2 2 2 . 3 3 . Penetration Max 1 | . . . . . . . . . . . . . . 1 1 . 1 . . . . 1 1 . Secondary Targets 4 | . . . . . . . . . . . . . . . . . . . . . . . 4 . Max Gunslinging Chain 1 | . . . . . . . . . . . . . . . . . . . . . . . 1 . Shots Hit Robots 671 | 11 . 9 11 8 . 4 28 14 9 13 21 19 46 42 20 12 63 55 43 23 . 57 163 . Core Hits 384 | 5 . 8 9 7 . 2 14 24 8 32 6 34 39 22 6 24 27 35 16 1 . 18 47 . Critical Hits 22 | . . . . . . . 1 . . . 2 . . 2 1 . 8 2 2 . . 1 3 . Critical Kills 8 | . . . . . . . . . . . 1 . . 2 . . 3 1 . . . 1 . . Critical Parts Destroyed 14 | . . . . . . . 1 . . . 1 . . . 1 . 5 1 2 . . . 3 . Melee Attacks 138 | . . . . . . . 59 . 6 . 17 . 29 15 12 . . . . . . . . . Impact . | . . . . . . . . . . . . . . . . . . . . . . . . . Slashing 116 | . . . . . . . 59 . 6 . 17 . 9 13 12 . . . . . . . . . Piercing . | . . . . . . . . . . . . . . . . . . . . . . . . . Sneak Attacks 17 | . . . . . . . 1 . . . 1 . 12 2 1 . . . . . . . . . Combat Hostiles 7 | . . . . . . . . . . . . . 5 2 . . . . . . . . . . Follow-up Attacks . | . . . . . . . . . . . . . . . . . . . . . . . . . Damage Inflicted 24889 | 163 . 377 633 260 . 64 722 1140 428 1606 600 1480 1971 1784 417 976 2632 1567 1226 200 . 1768 4875 . Guns 4886 | 141 . 64 61 13 . 14 316 . . . . . 340 220 235 . 219 733 368 . . 189 1973 . Cannons 8916 | . . . 125 139 . 50 . 83 . . 383 . . 114 . 209 2158 315 701 200 . 1579 2860 . Explosions 9902 | 22 . 313 447 108 . . 224 1057 428 1606 112 1480 1534 887 . 767 245 519 153 . . . . . Melee 1106 | . . . . . . . 182 . . . 105 . 93 544 182 . . . . . . . . . Ramming 79 | . . . . . . . . . . . . . 4 19 . . 10 . 4 . . . 42 . Kinetic 8086 | . . . . . . 14 58 . . . 238 . 74 195 235 . 2377 853 220 . . 947 2875 . Thermal 7483 | 22 . . 347 108 . . 35 83 . 190 145 213 120 512 . 976 245 714 854 200 . 761 1958 . Explosive 2187 | . . 313 100 . . . . . . . . . 1285 489 . . . . . . . . . . Electromagnetic 5948 | 141 . 64 186 152 . 50 447 1057 428 1416 112 1267 395 25 . . . . 148 . . 60 . . Impact . | . . . . . . . . . . . . . . . . . . . . . . . . . Slashing 1106 | . . . . . . . 182 . . . 105 . 93 544 182 . . . . . . . . . Piercing . | . . . . . . . . . . . . . . . . . . . . . . . . . Highest Corruption 25 | . . . . . . . . 1 1 1 2 3 7 7 7 7 4 4 7 7 1 1 25 25 Average Corruption 4 | . . . . . . . . 1 1 1 1 2 4 7 7 7 3 4 5 7 1 1 12 25 Corruption Purged . | . . . . . . . . . . . . . . . . . . . . . . . . . Effects 343 | . . . . . . . . 2 1 6 7 26 14 71 30 20 11 21 38 42 . 6 45 3 Message Errors 81 | . . . . . . . . 1 . 2 2 9 . 18 3 9 6 2 8 12 . 3 5 1 Matter Fused 79 | . . . . . . . . . . . . 5 5 19 9 2 2 8 12 12 . . 5 . Heat Flow Errors 28 | . . . . . . . . . . . 1 4 1 8 6 1 . 2 2 1 . . 2 . Energy Discharges 48 | . . . . . . . . . . 3 2 2 3 9 4 3 1 3 3 4 . 2 8 1 Parts Rejected 4 | . . . . . . . . . . . . . 1 . . . . . . 2 . . 1 . Data Loss (minor) 40 | . . . . . . . . 1 1 . 2 3 3 9 2 1 1 2 3 5 . . 7 . Data Loss (major) 13 | . . . . . . . . . . . . . . 6 2 . . . 4 1 . . . . Misfires 7 | . . . . . . . . . . . . . . . . 1 . . 2 3 . . 1 . Misdirections 2 | . . . . . . . . . . . . . . . . . . . . . . . 1 1 Targeting Errors 35 | . . . . . . . . . . . . 2 . . 4 3 1 4 4 2 . 1 14 . Weapon Failures 6 | . . . . . . . . . . 1 . 1 1 2 . . . . . . . . 1 . Overload Shots . | . . . . . . . . . . . . . . . . . . . . . . . . . Overflow Damage 964 | . . 38 137 3 . . 25 13 47 29 43 7 82 25 69 12 127 . 26 . . 83 198 . Projectiles 431 | . . . . . . . . . . . 43 . . . . . 81 . 26 . . 83 198 . Explosions 419 | . . 38 137 3 . . . 13 47 29 . 7 82 5 . 12 46 . . . . . . . Melee 114 | . . . . . . . 25 . . . . . . 20 69 . . . . . . . . . Knockbacks 30 | . . . . . . . . . . . 4 . . . . . 10 . . . . 5 11 . Impact . | . . . . . . . . . . . . . . . . . . . . . . . . . Kinetic 29 | . . . . . . . . . . . 4 . . . . . 9 . . . . 5 11 . Secondary 1 | . . . . . . . . . . . . . . . . . 1 . . . . . . . Self-Inflicted Damage 882 | . . 14 165 31 . . 27 88 . 200 . 60 233 9 . 27 13 8 7 . . . . . Shots 54 | . . 1 3 1 . . 1 10 . 16 . 5 7 2 . 4 1 2 1 . . . . . Rammed 8 | . . . . . . . . . . . . . 1 1 . . 1 . 1 . . . 4 . Targets Rammed 8 | . . . . . . . . . . . . . 1 1 . . 1 . 1 . . . 4 . Kicked . | . . . . . . . . . . . . . . . . . . . . . . . . . Crushed . | . . . . . . . . . . . . . . . . . . . . . . . . . Highest Temperature 522 | . . 66 135 96 . 36 177 120 45 108 378 314 100 344 262 482 24 449 405 177 . 375 522 . Average Temperature 99 | . . 42 46 42 . 23 51 37 19 27 114 82 26 110 103 159 11 231 137 35 . 127 160 . Received Heat Transfer 2528 | . . 48 21 15 . . 117 72 27 153 84 153 150 617 279 12 25 160 162 78 . 262 72 21 Effects 14 | . . . . . . . . . . . 1 . . . . 1 . 4 1 . . 5 2 . Shutdowns 5 | . . . . . . . . . . . 1 . . . . . . 1 1 . . 1 1 . Energy Bleed 1 | . . . . . . . . . . . . . . . . . . . . . . 1 . . Interference 5 | . . . . . . . . . . . . . . . . . . 3 . . . 2 . . Short Circuit 2 | . . . . . . . . . . . . . . . . 1 . . . . . 1 . . Damage (minor) 1 | . . . . . . . . . . . . . . . . . . . . . . . 1 . Siege Activations 17 | . . . . . . . . . . . . . . . . . . 3 2 . . 5 7 . Total Turns 429 | . . . . . . . . . . . . . . . . . . 126 6 . . 85 212 . Longest Duration 50 | . . . . . . . . . . . . . . . . . . 50 4 . . 34 48 . Robots Corrupted 11 | . . . . . . . 1 4 . 1 1 3 1 . . . . . . . . . . . Combat Hostiles 11 | . . . . . . . 1 4 . 1 1 3 1 . . . . . . . . . . . Parts Fried 30 | . . . . . . . 4 11 1 6 1 5 2 . . . . . . . . . . . Impact Corruptions . | . . . . . . . . . . . . . . . . . . . . . . . . . Robots Melted 12 | . . . . . . . . . . . . . . 2 . 4 . 4 2 . . . . . Combat Hostiles 10 | . . . . . . . . . . . . . . 2 . 3 . 4 1 . . . . . Parts Melted 59 | . . . . 1 . . . . . . . . . 14 . 20 . 13 9 . . 2 . . Heat Transferred 15743 | . . . 350 150 . . 50 148 . 200 222 187 100 2086 . 4880 150 4000 1475 112 . 449 1184 . Parts Sabotaged . | . . . . . . . . . . . . . . . . . . . . . . . . . Parts Stolen . | . . . . . . . . . . . . . . . . . . . . . . . . . Parts Stripped . | . . . . . . . . . . . . . . . . . . . . . . . . . Power Chain Reactions 23 | 1 . . 1 1 . . 1 3 . 7 . 7 1 1 . . . . . . . . . . Missiles Intercepted . | . . . . . . . . . . . . . . . . . . . . . . . . . Alert | -11 -10 -10 -9 -9 -9 -8 -8 -8 -8 -8 -7 -7 -6 -6 -6 -6 -5 -5 -5 -5 -4 -4 -3 -3 ------- Run | Scr Mat Min Mat Min Exi Min Mat Gar Mat Gar Fac Gar Fac Gar Fac Gar Fac Gar Fac Gar Fac Gar Res Gar Peak Influence 1155 | 20 24 79 206 134 . 31 102 747 458 1110 679 852 954 1155 731 765 411 698 712 706 370 311 266 24 Average Influence 389 | 11 22 18 63 72 . 5 31 434 367 724 542 674 518 860 625 644 240 486 542 468 282 188 145 24 Maximum Alert Level 4 | . . . 1 . . . . 3 2 4 2 3 3 4 3 3 2 2 3 3 1 1 1 . Low Security (%) 34 | 100 100 100 88 100 . 100 100 29 . . . . . . . . 32 5 . . . 56 64 100 Level 1 19 | . . . 11 . . . . 19 51 19 8 13 21 . . 17 67 5 9 35 100 43 35 . Level 2 27 | . . . . . . . . 42 48 17 91 13 61 16 98 40 . 88 81 55 . . . . Level 3 17 | . . . . . . . . 7 . 58 . 73 16 75 1 41 . . 9 8 . . . . Level 4 1 | . . . . . . . . . . 5 . . . 8 . . . . . . . . . . Level 5 . | . . . . . . . . . . . . . . . . . . . . . . . . . High Security . | . . . . . . . . . . . . . . . . . . . . . . . . . Max Security . | . . . . . . . . . . . . . . . . . . . . . . . . . Squads Dispatched 39 | . . . 3 . . . 2 . 1 . 1 . 5 . 5 . 8 . 6 . . . 8 . Investigation 1 | . . . 1 . . . . . . . . . . . . . . . . . . . . . Extermination 13 | . . . . . . . . . . . 1 . 2 . 1 . 4 . 1 . . . 4 . Reinforcement 16 | . . . 2 . . . 2 . 1 . . . 2 . 3 . 4 . 1 . . . 1 . Assault 4 | . . . . . . . . . . . . . 1 . 1 . . . 2 . . . . . Garrison 5 | . . . . . . . . . . . . . . . . . . . 2 . . . 3 . Intercept . | . . . . . . . . . . . . . . . . . . . . . . . . . Construction Impeded 4 | . . . . . . . 1 . 1 . . . 1 . 1 . . . . . . . . . Haulers Reinforced 4 | . . . . . . . . . . . . . 1 . 1 . 1 . . . . . 1 . Stealth | -11 -10 -10 -9 -9 -9 -8 -8 -8 -8 -8 -7 -7 -6 -6 -6 -6 -5 -5 -5 -5 -4 -4 -3 -3 --------- Run | Scr Mat Min Mat Min Exi Min Mat Gar Mat Gar Fac Gar Fac Gar Fac Gar Fac Gar Fac Gar Fac Gar Res Gar Distress Signals 22 | . . . 3 . . . 3 . . . . . 2 . 2 . 5 . 4 1 . . 2 . Communications Jammed 11 | . . . . . . . . . . . . . . . . . 2 . 5 . . . 4 . Distress Signals 11 | . . . . . . . . . . . . . . . . . 2 . 5 . . . 4 . Times Spotted 452 | . 6 5 11 12 . 1 15 18 9 28 6 16 34 37 21 22 43 24 48 24 . 24 46 2 Peak Tracking Total 8 | . 6 3 4 4 . 1 4 4 3 3 2 5 6 4 6 5 4 8 7 7 . 5 6 2 Tactical Retreats 41 | . . . . 1 . . 4 3 1 8 . 1 2 11 3 2 3 1 . . . 1 . . Traps | -11 -10 -10 -9 -9 -9 -8 -8 -8 -8 -8 -7 -7 -6 -6 -6 -6 -5 -5 -5 -5 -4 -4 -3 -3 ------- Run | Scr Mat Min Mat Min Exi Min Mat Gar Mat Gar Fac Gar Fac Gar Fac Gar Fac Gar Fac Gar Fac Gar Res Gar Traps Triggered 64 | . . . 1 . . . 1 9 . 3 1 25 3 5 . 2 1 . 2 5 1 4 1 . Indirectly 12 | . . . . . . . . 1 . . . 11 . . . . . . . . . . . . Trap Hack Attempts . | . . . . . . . . . . . . . . . . . . . . . . . . . Triggered . | . . . . . . . . . . . . . . . . . . . . . . . . . Disarmed . | . . . . . . . . . . . . . . . . . . . . . . . . . Reprogrammed . | . . . . . . . . . . . . . . . . . . . . . . . . . Reused . | . . . . . . . . . . . . . . . . . . . . . . . . . Traps Extracted . | . . . . . . . . . . . . . . . . . . . . . . . . . Installed 2 | . . . . . . . . 1 . . . 1 . . . . . . . . . . . . Triggered 3 | . . . . . . . . . . 1 . . . . . . 2 . . . . . . . Exploded 2 | . . . . . . . . 2 . . . . . . . . . . . . . . . . Machines | -11 -10 -10 -9 -9 -9 -8 -8 -8 -8 -8 -7 -7 -6 -6 -6 -6 -5 -5 -5 -5 -4 -4 -3 -3 ---------- Run | Scr Mat Min Mat Min Exi Min Mat Gar Mat Gar Fac Gar Fac Gar Fac Gar Fac Gar Fac Gar Fac Gar Res Gar Machines Disabled 69 | . . . 4 . . . 1 5 1 11 1 3 18 3 . 1 4 3 5 5 . 3 1 . Max in Single Turn 5 | . . . 1 . . . 1 1 1 2 1 1 5 1 . 1 2 1 3 1 . 1 1 . Garrison Access 1 | . . . . . . . . . . . . . . . . . . . 1 . . . . . Garrison Relay 24 | . . . . . . . . 3 . 4 . 3 . 3 . 1 . 2 . 5 . 3 . . Machines Sabotaged . | . . . . . . . . . . . . . . . . . . . . . . . . . Garrisons Compromised . | . . . . . . . . . . . . . . . . . . . . . . . . . Overloaded Fab Kills . | . . . . . . . . . . . . . . . . . . . . . . . . . Fab Network Shutdowns . | . . . . . . . . . . . . . . . . . . . . . . . . . Hacking | -11 -10 -10 -9 -9 -9 -8 -8 -8 -8 -8 -7 -7 -6 -6 -6 -6 -5 -5 -5 -5 -4 -4 -3 -3 --------- Run | Scr Mat Min Mat Min Exi Min Mat Gar Mat Gar Fac Gar Fac Gar Fac Gar Fac Gar Fac Gar Fac Gar Res Gar Machines Accessed 56 | . 2 . 2 . 2 . 10 . 4 . 4 . 8 . 3 . 6 . 7 . 2 . 6 . Terminals 27 | . 1 . 1 . . . 7 . 2 . 2 . 6 . 1 . 2 . 3 . 1 . 1 . Fabricators 4 | . . . . . . . . . . . . . . . 1 . 1 . 1 . . . 1 . Repair Stations 6 | . 1 . . . . . 1 . . . . . . . . . 1 . 1 . . . 2 . Recycling Units . | . . . . . . . . . . . . . . . . . . . . . . . . . Scanalyzers 7 | . . . 1 . . . 1 . 1 . 1 . 1 . . . 1 . . . . . 1 . Garrison Access 10 | . . . . . . . 1 . 1 . 1 . 1 . 1 . 1 . 2 . 1 . 1 . Total Hacks 169 | . 8 . 4 . 24 . 41 . 9 . 11 . 18 . 9 . 11 . 16 . 7 . 11 . Successful 112 | . 6 . 2 . 24 . 31 . 5 . 3 . 9 . 5 . 7 . 10 . 6 . 4 . Failed 57 | . 2 . 2 . . . 10 . 4 . 8 . 9 . 4 . 4 . 6 . 1 . 7 . Catastrophic 5 | . . . . . . . 1 . . . . . 1 . 1 . 1 . . . . . 1 . Database Lockouts . | . . . . . . . . . . . . . . . . . . . . . . . . . Manual 80 | . 6 . 2 . 1 . 24 . 6 . 7 . 15 . 1 . 3 . 7 . 5 . 3 . Terminals 79 | . 6 . 2 . . . 28 . 4 . 4 . 15 . 1 . 3 . 7 . 6 . 3 . Fabricators 14 | . . . . . . . . . . . . . . . 7 . 1 . 4 . . . 2 . Repair Stations 11 | . 2 . . . . . 2 . . . . . . . . . 1 . 3 . . . 3 . Recycling Units . | . . . . . . . . . . . . . . . . . . . . . . . . . Scanalyzers 22 | . . . 2 . . . 6 . 2 . 3 . 2 . . . 5 . . . . . 2 . Garrison Access 19 | . . . . . . . 5 . 3 . 4 . 1 . 1 . 1 . 2 . 1 . 1 . Terminal Hacks 40 | . 1 . . . 24 . 8 . . . 1 . 2 . . . . . 1 . 3 . . . Record 24 | . . . . . 23 . 1 . . . . . . . . . . . . . . . . . Part Schematic 3 | . . . . . . . 2 . . . 1 . . . . . . . . . . . . . Prototype ID Bank 1 | . . . . . . . . . . . . . . . . . . . . . 1 . . . Terminal Index 3 | . 1 . . . . . . . . . . . 1 . . . . . . . 1 . . . Fabricator Index 1 | . . . . . . . . . . . . . 1 . . . . . . . . . . . Garrison Index 1 | . . . . . . . . . . . . . . . . . . . 1 . . . . . Unreport Threat 2 | . . . . . . . 1 . . . . . . . . . . . . . 1 . . . Locate Traps 1 | . . . . . . . 1 . . . . . . . . . . . . . . . . . Investigation Status 1 | . . . . . . . 1 . . . . . . . . . . . . . . . . . Reinforcement Status 1 | . . . . . . . 1 . . . . . . . . . . . . . . . . . Zone Layout 1 | . . . . . . . 1 . . . . . . . . . . . . . . . . . EX-Prototype ID Bank 1 | . . . . . 1 . . . . . . . . . . . . . . . . . . . Fabricator Hacks 8 | . . . . . . . . . . . . . . . 4 . 1 . 2 . . . 1 . Load Schematic 3 | . . . . . . . . . . . . . . . 2 . . . 1 . . . . . Build 5 | . . . . . . . . . . . . . . . 2 . 1 . 1 . . . 1 . Repair Station Hacks 6 | . 2 . . . . . 2 . . . . . . . . . . . 1 . . . 1 . Scan Component 4 | . 1 . . . . . 1 . . . . . . . . . . . 1 . . . 1 . Repair 2 | . 1 . . . . . 1 . . . . . . . . . . . . . . . . . Recycling Unit Hacks . | . . . . . . . . . . . . . . . . . . . . . . . . . Scanalyzer 15 | . . . 2 . . . 6 . 2 . . . 1 . . . 4 . . . . . . . Insert Component 7 | . . . 1 . . . 3 . 1 . . . 1 . . . 1 . . . . . . . Analyze 8 | . . . 1 . . . 3 . 1 . . . . . . . 3 . . . . . . . Garrison Access Hacks 10 | . . . . . . . 1 . 1 . 1 . 1 . 1 . 1 . 2 . 1 . 1 . Unlock Access 10 | . . . . . . . 1 . 1 . 1 . 1 . 1 . 1 . 2 . 1 . 1 . Unauthorized Hacks 33 | . 3 . . . . . 14 . 2 . 1 . 5 . . . 1 . 4 . 2 . 1 . Terminals 31 | . 3 . . . . . 13 . 1 . 1 . 5 . . . 1 . 4 . 2 . 1 . Track 9 | . 1 . . . . . 5 . . . . . 1 . . . . . 1 . 1 . . . Assimilate 1 | . . . . . . . 1 . . . . . . . . . . . . . . . . . Botnet 19 | . 1 . . . . . 7 . 1 . 1 . 3 . . . 1 . 3 . 1 . 1 . Operators 2 | . 1 . . . . . . . . . . . 1 . . . . . . . . . . . Fabricators . | . . . . . . . . . . . . . . . . . . . . . . . . . Repair Stations . | . . . . . . . . . . . . . . . . . . . . . . . . . Recycling Units . | . . . . . . . . . . . . . . . . . . . . . . . . . Scanalyzers . | . . . . . . . . . . . . . . . . . . . . . . . . . Garrison Access 2 | . . . . . . . 1 . 1 . . . . . . . . . . . . . . . Reprogram 1 | . . . . . . . . . 1 . . . . . . . . . . . . . . . Intercept 1 | . . . . . . . 1 . . . . . . . . . . . . . . . . . Data Cores Recovered . | . . . . . . . . . . . . . . . . . . . . . . . . . Used . | . . . . . . . . . . . . . . . . . . . . . . . . . Hacking Detections 47 | . 1 . 2 . . . 10 . 4 . 4 . 8 . 2 . 5 . 4 . 1 . 6 . Full Trace Events 1 | . . . . . . . 1 . . . . . . . . . . . . . . . . . Feedback Events . | . . . . . . . . . . . . . . . . . . . . . . . . . Feedback Blocked . | . . . . . . . . . . . . . . . . . . . . . . . . . Robot Schematics Acquired . | . . . . . . . . . . . . . . . . . . . . . . . . . Robots Built 1 | . . . . . . . . . . . . . . . . . 1 . . . . . . . Matter 318 | . . . . . . . . . . . . . . . . . 318 . . . . . . . Time 169 | . . . . . . . . . . . . . . . . . 169 . . . . . . . Total Robot Build Rating 6 | . . . . . . . . . . . . . . . . . 6 . . . . . . . Part Schematics Acquired 8 | . . . 1 . . . 4 . 1 . 1 . . . . . 1 . . . . . . . Parts Built 5 | . . . . . . . . . . . . . . . 2 . . . 1 . . . 2 . Matter 694 | . . . . . . . . . . . . . . . 314 . . . 102 . . . 278 . Time 228 | . . . . . . . . . . . . . . . 157 . . . 25 . . . 46 . Total Part Build Rating 26 | . . . . . . . . . . . . . . . 7 . . . 1 . . . 18 . Parts Repaired 2 | . 1 . . . . . 1 . . . . . . . . . . . . . . . . . Time 52 | . 26 . . . . . 26 . . . . . . . . . . . . . . . . . Parts Recycled . | . . . . . . . . . . . . . . . . . . . . . . . . . Recycled Matter . | . . . . . . . . . . . . . . . . . . . . . . . . . Retrieved Matter . | . . . . . . . . . . . . . . . . . . . . . . . . . Retrieved Components . | . . . . . . . . . . . . . . . . . . . . . . . . . Parts Scanalyzed 5 | . . . 1 . . . 2 . 1 . . . . . . . 1 . . . . . . . Part Schematics Acquired 5 | . . . 1 . . . 2 . 1 . . . . . . . 1 . . . . . . . Parts Damaged 1 | . . . . . . . 1 . . . . . . . . . . . . . . . . . Bothacking | -11 -10 -10 -9 -9 -9 -8 -8 -8 -8 -8 -7 -7 -6 -6 -6 -6 -5 -5 -5 -5 -4 -4 -3 -3 ------------ Run | Scr Mat Min Mat Min Exi Min Mat Gar Mat Gar Fac Gar Fac Gar Fac Gar Fac Gar Fac Gar Fac Gar Res Gar Used RIF Installer 9 | . . . . . . . . 1 . 1 . 1 . 1 . 1 . 1 . 1 . 1 . 1 Hotswap 1 | . . . . . . . . . . . . . . . . 1 . . . . . . . . Command Fork 1 | . . . . . . . . . . 1 . . . . . . . . . . . . . . Threat Obfuscator 1 | . . . . . . . . . . . . . . . . . . 1 . . . . . . Signal Jammer 1 | . . . . . . . . . . . . . . 1 . . . . . . . . . . Patrol Navigation 1 | . . . . . . . . . . . . . . . . . . . . . . . . 1 Watcher Feeds 1 | . . . . . . . . . . . . . . . . . . . . 1 . . . . Structural Interface 1 | . . . . . . . . . . . . 1 . . . . . . . . . . . . Autooverride 1 | . . . . . . . . . . . . . . . . . . . . . . 1 . . Robots Hacked 97 | . . . . . . . . . . . . . 6 10 7 5 14 5 10 14 . 12 14 . Non-combat 19 | . . . . . . . . . . . . . 2 . 2 . 5 . 3 . . . 7 . Combat 78 | . . . . . . . . . . . . . 4 10 5 5 9 5 7 14 . 12 7 . Autooverrided 2 | . . . . . . . . . . . . . . . . . . . . . . 1 1 . Robot Hacks Applied 97 | . . . . . . . . . . . . . 6 10 7 5 15 5 10 14 . 11 14 . drop_inventory 3 | . . . . . . . . . . . . . . . . . 1 . 1 . . . 1 . locate_stockpiles 1 | . . . . . . . . . . . . . . . . . . . . . . . 1 . find_recycling 1 | . . . . . . . . . . . . . . . . . 1 . . . . . . . purge_threat 1 | . . . . . . . . . . . . . . . . . 1 . . . . . . . reprogram_traps 1 | . . . . . . . . . . . . . . . . . 1 . . . . . . . map_route 9 | . . . . . . . . . . . . . 1 . 2 . 1 . 2 . . . 3 . find_shortcuts 1 | . . . . . . . . . . . . . . . . . . . 1 . . . . . link_fov 1 | . . . . . . . . . . . . . . . . . . . . . . . 1 . focus_fire 1 | . . . . . . . . . . . . . . 1 . . . . . . . . . . spike_heat 4 | . . . . . . . . . . . . . . . . . 1 . . 1 . 2 . . overload_power 1 | . . . . . . . . . . . . . . . 1 . . . . . . . . . amplify_resonance 1 | . . . . . . . . . . . . . . . . . . . . . . . 1 . disable_weapons 5 | . . . . . . . . . . . . . . 1 . . 1 1 . 2 . . . . streamctrl_low 1 | . . . . . . . . . . . . . 1 . . . . . . . . . . . streamctrl_high 3 | . . . . . . . . . . . . . 1 . . . . . . . . 1 1 . formatsys_high 63 | . . . . . . . . . . . . . 3 8 4 5 8 4 6 11 . 8 6 . Relay Couplers Released 95 | . . . . . . . . 10 . 13 . 11 . 12 . 5 . 6 4 21 . 9 4 . Machine Destruction 87 | . . . . . . . . 10 . 13 . 11 . 12 . 5 . 6 . 21 . 9 . . Programmers 8 | . . . . . . . . . . . . . . . . . . . 4 . . . 4 . Attached 38 | . . . . . . . . . . . . . 4 5 3 2 3 2 2 8 1 5 3 . Robots Rewired 7 | . . . . . . . . . . . . . 1 . . . . . . 6 . . . . Allies Hacked 4 | . . . . . . . . . . . . . . . . . . . 2 . . . 2 . Hacks Repelled . | . . . . . . . . . . . . . . . . . . . . . . . . . Allies | -11 -10 -10 -9 -9 -9 -8 -8 -8 -8 -8 -7 -7 -6 -6 -6 -6 -5 -5 -5 -5 -4 -4 -3 -3 -------- Run | Scr Mat Min Mat Min Exi Min Mat Gar Mat Gar Fac Gar Fac Gar Fac Gar Fac Gar Fac Gar Fac Gar Res Gar Total Allies 101 | . . 2 . 3 . . 1 . 3 . . . 7 9 5 6 12 4 8 19 . 12 10 . Largest Group 8 | . . 2 2 3 3 3 1 . 3 3 . . 2 4 4 3 4 4 5 8 6 6 4 . Highest-Rated Group 270 | . . 43 43 40 40 40 10 . 48 48 . . 58 137 119 56 113 196 198 270 237 214 191 . Highest-Rated Ally 64 | . . 31 31 16 16 16 10 . 16 16 . . 41 47 36 32 60 49 49 49 49 56 64 . Total Orders 4 | . . . . . . . 3 . . . . . . . 1 . . . . . . . . . STAY 3 | . . . . . . . 2 . . . . . . . 1 . . . . . . . . . ROAM 1 | . . . . . . . 1 . . . . . . . . . . . . . . . . . Ally Attacks 624 | . . . 9 . . 7 . . 6 31 . . 38 76 66 17 85 21 114 66 . 46 42 . Total Damage 13849 | . . . 98 . . 62 . . 74 400 . . 794 1699 1509 308 1198 449 2868 1972 . 1349 1069 . Kills 109 | . . . 3 . . . . . 2 5 . . 4 10 14 4 9 4 25 17 . 6 6 . Allies Corrupted 9 | . . . . . . . . . . . . . 1 . . . . . 5 . . . 3 . Allies Melted . | . . . . . . . . . . . . . . . . . . . . . . . . . Intel | -11 -10 -10 -9 -9 -9 -8 -8 -8 -8 -8 -7 -7 -6 -6 -6 -6 -5 -5 -5 -5 -4 -4 -3 -3 ------- Run | Scr Mat Min Mat Min Exi Min Mat Gar Mat Gar Fac Gar Fac Gar Fac Gar Fac Gar Fac Gar Fac Gar Res Gar Robot Analysis Total . | . . . . . . . . . . . . . . . . . . . . . . . . . Derelict Logs Recovered 3 | . . 1 . 2 . . . . . . . . . . . . . . . . . . . . Drone Launches . | . . . . . . . . . . . . . . . . . . . . . . . . . Drone Recoveries . | . . . . . . . . . . . . . . . . . . . . . . . . . Exploration | -11 -10 -10 -9 -9 -9 -8 -8 -8 -8 -8 -7 -7 -6 -6 -6 -6 -5 -5 -5 -5 -4 -4 -3 -3 ------------- Run | Scr Mat Min Mat Min Exi Min Mat Gar Mat Gar Fac Gar Fac Gar Fac Gar Fac Gar Fac Gar Fac Gar Res Gar Turns Passed 26337 | 168 163 1557 280 733 376 1156 2135 1437 770 1670 924 1426 1093 2423 840 605 2192 847 1299 1382 220 1334 1274 33 Spaces Moved 11933 | 74 84 946 193 505 307 713 814 613 276 791 427 676 533 558 321 272 953 372 615 597 115 646 498 34 Core 117 | 20 . . . . . . . . . . . . 2 42 . . . . . . . . 19 34 Treads 7735 | 54 84 946 53 11 . 39 60 332 8 499 427 676 122 435 . 212 953 372 615 597 115 646 479 . Legs 412 | . . . . . . . . . . . . . . 31 321 60 . . . . . . . . Wheels 3669 | . . . 140 494 307 674 754 281 268 292 . . 409 50 . . . . . . . . . . Hover . | . . . . . . . . . . . . . . . . . . . . . . . . . Flight . | . . . . . . . . . . . . . . . . . . . . . . . . . Fastest Speed 50 | 50 160 160 90 100 100 120 120 125 190 190 175 180 130 140 180 150 180 160 160 160 180 160 50 50 Average Speed 174 | 147 160 160 111 113 118 126 129 198 190 191 178 180 155 378 180 193 199 160 169 179 180 163 163 92 Slowest Speed 2050 | 250 160 160 160 200 120 240 240 225 212 192 180 200 2050 1900 180 240 240 180 180 180 180 180 1700 100 Overloaded Moves . | . . . . . . . . . . . . . . . . . . . . . . . . . Propulsion Burnouts . | . . . . . . . . . . . . . . . . . . . . . . . . . Robots Hopped . | . . . . . . . . . . . . . . . . . . . . . . . . . Cave-ins Triggered . | . . . . . . . . . . . . . . . . . . . . . . . . . Exploration Rate (%) 47 | 6 25 91 24 81 63 91 47 67 20 91 9 78 22 93 9 52 23 69 20 92 4 82 21 14 Regions Visited 24 Branch Regions 4 Pre-discovered Areas 1 | . . . . . 1 . . . . . . . . . . . . . . . . . . . Known Exits Taken 9 | . . . . . . . 1 . 1 . 1 . 1 . 1 . 1 . 1 . 1 . 1 . Unknown Exits Taken 7 | 1 1 1 1 1 1 1 . . . . . . . . . . . . . . . . . . Scrap Searched 4 | . . 1 . 2 . 1 . . . . . . . . . . . . . . . . . . Spaces Dug 101 | . . . . . . . 56 5 6 . 16 . 3 . 9 . 4 . 1 . . . 1 . Terrain Destroyed 393 | 4 . 28 34 8 . . 56 8 6 9 19 22 83 10 9 . 57 3 6 2 . 9 20 . Melee 90 | . . . . . . . 56 . 6 . 16 . 3 . 9 . . . . . . . . . Projectile 69 | . . . . . . . . . . . 3 . . . . . 26 3 6 2 . 9 20 . AOE 234 | 4 . 28 34 8 . . . 8 . 9 . 22 80 10 . . 31 . . . . . . . Actions | -11 -10 -10 -9 -9 -9 -8 -8 -8 -8 -8 -7 -7 -6 -6 -6 -6 -5 -5 -5 -5 -4 -4 -3 -3 --------- Run | Scr Mat Min Mat Min Exi Min Mat Gar Mat Gar Fac Gar Fac Gar Fac Gar Fac Gar Fac Gar Fac Gar Res Gar Total 16461 | 117 113 976 236 649 319 963 1806 778 497 896 533 827 729 809 549 336 1193 564 837 894 128 876 801 35 Wait 2600 | . 22 8 10 125 7 246 838 72 168 47 51 47 82 92 170 10 97 89 127 43 6 114 129 . Move 11904 | 73 83 945 192 504 306 712 813 611 275 789 426 674 533 556 321 270 953 370 614 595 114 644 497 34 Hop . | . . . . . . . . . . . . . . . . . . . . . . . . . Pick Up 334 | 15 6 4 10 5 4 3 26 17 15 7 8 14 12 34 9 9 26 20 16 27 4 24 19 . Fast Attach 1 | 1 . . . . . . . . . . . . . . . . . . . . . . . . Attach 142 | 6 1 1 4 2 . . 5 1 1 2 2 2 15 17 1 10 10 11 7 10 3 10 20 1 Detach 13 | . . . . . . . . . . . . . . 2 . 3 1 2 2 . . 1 2 . Swap 153 | 1 . 1 3 1 1 . 21 4 7 2 8 5 12 13 7 2 8 7 9 13 1 8 19 . Drop 188 | 3 1 4 4 . 1 . 22 11 13 5 7 12 6 9 6 3 17 13 10 14 . 14 13 . Fire 700 | 18 . 13 13 12 . 2 22 36 12 32 14 35 36 47 23 22 77 51 48 35 . 54 98 . Melee 138 | . . . . . . . 59 . 6 . 17 . 29 15 12 . . . . . . . . . Ram 1 | . . . . . . . . . . . . . 1 . . . . . . . . . . . Kick . | . . . . . . . . . . . . . . . . . . . . . . . . . Crush 7 | . . . . . . . . . . . . . . 1 . . 1 . 1 . . . 4 . Escape Stasis 114 | . . . . . . . . 25 . 12 . 37 . 20 . 4 . . 2 10 . 4 . . Rewire 164 | . . . . . . . . . . . . . 3 3 . 3 3 1 1 147 . 3 . . Trap 2 | . . . . . . . . 1 . . . 1 . . . . . . . . . . . . Miscellaneous . | . . . . . . . . . . . . . . . . . . . . . . . . . Route ------- -11/Scrapyard -10/Materials (discovered 2 exits: [*Min x2]) -10/Mines (discovered 2 exits: *Mat x2) -9/Materials -9/Mines (discovered 3 exits: *Mat x2 / *Exi) -9/Exiles -8/Mines -8/Materials (discovered 3 exits: *Fac x2 / Gar) -8/Garrison (discovered 2 exits: *Mat x2) -8/Materials -8/Garrison (discovered 3 exits: *Fac x3) -7/Factory -7/Garrison (discovered 3 exits: *Fac x3) -6/Factory -6/Garrison (discovered 3 exits: *Fac x3) -6/Factory (discovered 3 exits: Fac / [Ext] / Gar) -6/Garrison -5/Factory (discovered 3 exits: *Fac / [Upp] / Gar) -5/Garrison (discovered 2 exits: *Fac x2) -5/Factory -5/Garrison (discovered 3 exits: *Fac x3) -4/Factory -4/Garrison (discovered 3 exits: *Res x3) -3/Research (discovered 2 exits: [Res] / Gar) -3/Garrison History --------- Turn | Location | Event 21 | -11/Scrapyard | Discovered new exit (range 15) 169 | -11/Scrapyard | Entered Materials 169 | -10/Materials | Discovered new exit (range 8) 252 | -10/Materials | Repaired Sml. Storage Unit 289 | -10/Materials | Discovered new exit (range 16) 314 | -10/Materials | Build established: Mutant 332 | -10/Materials | Entered Mines 456 | -10/Mines | Learned 2 Materials zone layouts 832 | -10/Mines | Discovered new exit (range 14) 890 | -10/Mines | Discovered new exit (range 4) 1604 | -10/Mines | A weapon hastily lodged in a ceiling crevice suddenly fell to the ground 1889 | -10/Mines | Entered Materials 1889 | -9/Materials | Accompanied by 2 allies 1889 | -9/Materials | Evolved 2 slots: Propulsion x1, Utility x1 1894 | -9/Materials | Led the pair of lost Derelicts to an unsafe place 2142 | -9/Materials | Met 8R-AWN 2154 | -9/Materials | Discovered new exit (range 13) 2169 | -9/Materials | Entered Mines 2171 | -9/Mines | Followed 8R-AWN into the Mines 2472 | -9/Mines | Learned Materials stockpile data 2482 | -9/Mines | Found a hidden stash of uninstalled traps 2695 | -9/Mines | Discovered new exit (range 9) 2755 | -9/Mines | Assisted by bots powering up and referring to "LRC-V3" 2763 | -9/Mines | Learned Materials terminal intel 2866 | -9/Mines | Discovered new exit (range 10) 2892 | -9/Mines | Discovered new exit (range 5) 2902 | -9/Mines | Entered Exiles 2902 | -9/Exiles | Accompanied by 3 allies 2938 | -9/Exiles | Welcomed by 8R-AWN 2963 | -9/Exiles | Met EX-HEX 3018 | -9/Exiles | Met EX-BIN 3046 | -9/Exiles | Aligned with FarCom system 3047 | -9/Exiles | Given EX-Vault access code 3086 | -9/Exiles | Opened EX-Vault 3100 | -9/Exiles | Found Firepult 3125 | -9/Exiles | Warned to stay clear of 0b10 Research branches 3165 | -9/Exiles | Met EX-DEC 3215 | -9/Exiles | Build established: Hauler-Mutant 3219 | -9/Exiles | Learned location of Zion (-6) 3257 | -9/Exiles | Discovered new exit (range 14) 3278 | -9/Exiles | Left Exiles lab with Firepult 3278 | -9/Exiles | Entered Mines 3278 | -8/Mines | Accompanied by 3 allies 4422 | -8/Mines | Discovered new exit (range 7) 4434 | -8/Mines | Entered Materials 4434 | -8/Materials | Evolved 2 slots: Utility x2 4436 | -8/Materials | Loaded intel: 12 terminal locations 5077 | -8/Materials | Discovered new exit (range 12) 5686 | -8/Materials | Identified exit to Garrison 5941 | -8/Materials | Discovered new exit (range 11) 5998 | -8/Materials | Repaired Hcp. Battery 6569 | -8/Materials | Entered Garrison 6580 | -8/Garrison | Triggered checkpoint 6638 | -8/Garrison | Triggered checkpoint 6733 | -8/Garrison | Garrison Relay disabled 7252 | -8/Garrison | Triggered checkpoint 7274 | -8/Garrison | Triggered checkpoint 7352 | -8/Garrison | Triggered checkpoint 7378 | -8/Garrison | Triggered checkpoint 7470 | -8/Garrison | Triggered checkpoint 7489 | -8/Garrison | Discovered new exit (range 14) 7538 | -8/Garrison | Installed Relay Interface Framework 7635 | -8/Garrison | Garrison Relay disabled 7876 | -8/Garrison | Triggered checkpoint 7942 | -8/Garrison | Build established: Bothacker-Mutant 7977 | -8/Garrison | Discovered new exit (range 13) 8006 | -8/Garrison | Entered Materials 8682 | -8/Materials | Identified exit to Garrison 8776 | -8/Materials | Entered Garrison 8776 | -8/Garrison | Accompanied by 3 allies 8870 | -8/Garrison | Triggered checkpoint 9100 | -8/Garrison | Triggered checkpoint 9134 | -8/Garrison | Triggered checkpoint 9167 | -8/Garrison | Triggered checkpoint 9191 | -8/Garrison | Triggered checkpoint 9286 | -8/Garrison | Discovered new exit (range 15) 9572 | -8/Garrison | Discovered new exit (range 11) 9610 | -8/Garrison | Expanded RIF knowledge: Command Fork 9688 | -8/Garrison | Triggered checkpoint 10074 | -8/Garrison | Triggered checkpoint 10103 | -8/Garrison | Garrison Relay disabled 10287 | -8/Garrison | Triggered checkpoint 10413 | -8/Garrison | Discovered new exit (range 14) 10446 | -8/Garrison | Entered Factory 10446 | -7/Factory | Evolved 2 slots: Utility x2 10485 | -7/Factory | Identified exit to Garrison 11370 | -7/Factory | Entered Garrison 11402 | -7/Garrison | Triggered checkpoint 11502 | -7/Garrison | Garrison Relay disabled 11665 | -7/Garrison | Triggered checkpoint 11665 | -7/Garrison | Triggered checkpoint 11699 | -7/Garrison | Triggered checkpoint 11738 | -7/Garrison | Triggered checkpoint 11845 | -7/Garrison | Discovered new exit (range 9) 11914 | -7/Garrison | Triggered checkpoint 12105 | -7/Garrison | Discovered new exit (range 9) 12324 | -7/Garrison | Discovered new exit (range 12) 12358 | -7/Garrison | Expanded RIF knowledge: Structural Interface 12524 | -7/Garrison | Triggered checkpoint 12796 | -7/Garrison | Entered Factory 12796 | -6/Factory | Evolved 2 slots: Propulsion x1, Utility x1 13750 | -6/Factory | Lost 5 parts (1p1n2u1w) 13846 | -6/Factory | First assault squad dispatched 13889 | -6/Factory | Identified exit to Garrison 13889 | -6/Factory | Entered Garrison 13944 | -6/Garrison | Triggered checkpoint 14074 | -6/Garrison | Triggered checkpoint 14145 | -6/Garrison | Lost 3 parts (2n1w) 14292 | -6/Garrison | Garrison Relay disabled 14967 | -6/Garrison | Spotted B-75 Beast 14981 | -6/Garrison | Destroyed B-75 Beast 15053 | -6/Garrison | Core integrity fell below 50% 15054 | -6/Garrison | Triggered checkpoint 15054 | -6/Garrison | Triggered checkpoint 15244 | -6/Garrison | Triggered checkpoint 15310 | -6/Garrison | Discovered new exit (range 15) 15365 | -6/Garrison | Expanded RIF knowledge: Signal Jamming 15528 | -6/Garrison | Triggered checkpoint 15560 | -6/Garrison | Garrison Relay disabled 15664 | -6/Garrison | Build established: Botlord-Mutant 15826 | -6/Garrison | Discovered new exit (range 14) 16090 | -6/Garrison | Triggered checkpoint 16229 | -6/Garrison | Garrison Relay disabled 16276 | -6/Garrison | Discovered new exit (range 9) 16312 | -6/Garrison | Entered Factory 16312 | -6/Factory | Accompanied by 2 allies 16606 | -6/Factory | Discovered new exit (range 79) 16606 | -6/Factory | Discovered new exit (range 119) 16876 | -6/Factory | Fabricated Remote Datajack (x1) 16953 | -6/Factory | Fabricated Hacking Suite (x1) 17012 | -6/Factory | First assault squad dispatched 17149 | -6/Factory | Lost 3 parts (1p1n1w) 17152 | -6/Factory | Identified exit to Garrison 17152 | -6/Factory | Entered Garrison 17244 | -6/Garrison | Triggered checkpoint 17244 | -6/Garrison | Spotted B-75 Beast 17253 | -6/Garrison | Destroyed B-75 Beast 17253 | -6/Garrison | Triggered checkpoint 17290 | -6/Garrison | Triggered checkpoint 17325 | -6/Garrison | Destroyed 10 combat bots 17377 | -6/Garrison | Discovered new exit (range 13) 17419 | -6/Garrison | Expanded RIF knowledge: Hotswap 17489 | -6/Garrison | Triggered checkpoint 17493 | -6/Garrison | Core integrity fell below 20% 17538 | -6/Garrison | Garrison Relay disabled 17757 | -6/Garrison | Entered Factory 17757 | -5/Factory | Accompanied by 1 ally 17757 | -5/Factory | Evolved 2 slots: Utility x2 18096 | -5/Factory | Discovered new exit (range 114) 18384 | -5/Factory | Fabricated I-47 Archangel? 19497 | -5/Factory | Discovered new exit (range 9) 19658 | -5/Factory | Allied Derelicts emerged from ambush trap array 19949 | -5/Factory | Identified exit to Garrison 19949 | -5/Factory | Entered Garrison 19949 | -5/Garrison | Accompanied by 2 allies 19994 | -5/Garrison | Triggered checkpoint 20014 | -5/Garrison | Triggered checkpoint 20064 | -5/Garrison | Destroyed 9 combat bots 20260 | -5/Garrison | Triggered checkpoint 20314 | -5/Garrison | Discovered new exit (range 14) 20349 | -5/Garrison | Expanded RIF knowledge: Threat Obfuscation 20400 | -5/Garrison | Triggered checkpoint 20418 | -5/Garrison | Garrison Relay disabled 20635 | -5/Garrison | Discovered new exit (range 10) 20684 | -5/Garrison | Triggered checkpoint 20714 | -5/Garrison | Garrison Relay disabled 20796 | -5/Garrison | Entered Factory 20796 | -5/Factory | Accompanied by 4 allies 21396 | -5/Factory | First assault squad dispatched 21403 | -5/Factory | Identified exit to Garrison 21488 | -5/Factory | P-70 Sage assimilated allied Warrior 6a 21834 | -5/Factory | Fabricated Hcp. Storage Unit (x1) 22084 | -5/Factory | Identified exit to Garrison 22095 | -5/Factory | Entered Garrison 22104 | -5/Garrison | Expanded RIF knowledge: Patrol Navigation 22142 | -5/Garrison | Triggered checkpoint 22169 | -5/Garrison | Garrison Relay disabled 22280 | -5/Garrison | Triggered checkpoint 22290 | -5/Garrison | Triggered checkpoint 22292 | -5/Garrison | Triggered checkpoint 22358 | -5/Garrison | Triggered checkpoint 22524 | -5/Garrison | Discovered new exit (range 10) 22568 | -5/Garrison | Triggered checkpoint 22586 | -5/Garrison | Garrison Relay disabled 22978 | -5/Garrison | Discovered new exit (range 9) 23136 | -5/Garrison | Triggered checkpoint 23142 | -5/Garrison | Garrison Relay disabled 23308 | -5/Garrison | Discovered new exit (range 5) 23332 | -5/Garrison | Triggered checkpoint 23357 | -5/Garrison | Garrison Relay disabled 23477 | -5/Garrison | Entered Factory 23477 | -4/Factory | Accompanied by 6 allies 23477 | -4/Factory | Evolved 2 slots: Utility x1, Weapon x1 23605 | -4/Factory | Identified exit to Garrison 23697 | -4/Factory | Entered Garrison 23697 | -4/Garrison | Accompanied by 5 allies 23742 | -4/Garrison | Triggered checkpoint 23832 | -4/Garrison | Garrison Relay disabled 23925 | -4/Garrison | Spotted B-86 Titan 23932 | -4/Garrison | Triggered checkpoint 23949 | -4/Garrison | Destroyed B-86 Titan 23982 | -4/Garrison | Triggered checkpoint 24064 | -4/Garrison | Lost 4 parts (1p2n1w) 24110 | -4/Garrison | Triggered checkpoint 24179 | -4/Garrison | Discovered new exit (range 10) 24209 | -4/Garrison | Expanded RIF knowledge: Autooverride 24386 | -4/Garrison | Discovered new exit (range 12) 24436 | -4/Garrison | Triggered checkpoint 24514 | -4/Garrison | Garrison Relay disabled 24834 | -4/Garrison | Discovered new exit (range 10) 24846 | -4/Garrison | Triggered checkpoint 24898 | -4/Garrison | Garrison Relay disabled 25031 | -4/Garrison | Entered Research 25031 | -3/Research | Accompanied by 4 allies 25031 | -3/Research | Evolved 2 slots: Power x1, Utility x1 25161 | -3/Research | Fabricated Biometal Heavy Treads (x2) 25446 | -3/Research | P-80 Master assimilated allied Virus 7b 25503 | -3/Research | Discovered new exit (range 169) 26073 | -3/Research | System corruption reached 10% 26205 | -3/Research | Lost 5 parts (1n1u3w) 26282 | -3/Research | Core integrity fell below 50% 26295 | -3/Research | Core integrity fell below 20% 26299 | -3/Research | Identified exit to Garrison 26305 | -3/Research | Entered Garrison 26308 | -3/Garrison | Expanded RIF knowledge: Watcher Feeds 26318 | -3/Garrison | Lost 9 parts (1p1n4u3w) 26338 | -3/Garrison | Triggered checkpoint 26338 | -3/Garrison | Destroyed by G-67 Veteran with Electrolaser Last Messages --------------- >>Unlock Access door unlocked. 26299_ EXIT=UNLOCKED: GARRISON 26299_ Penetrated by Slug. 26299_ Slug penetrates Y-72 Warden. 26299_ Slug penetrates Garrison Access. 26299_ K-01 Serf destroyed. 26299_ K-01 Serf collects debris. 26299_ U-05 Engineer builds a Door. 26300_ Y-72 Warden emerges from the garrison. 26300_ K-01 Serf collects debris. LOCATION=GARRISON GOAL=ESCAPE 26305_ Receiving FarCom transmissions... 26307_ Initiating installation procedure... 26308_ Expanded RIF knowledge: Watcher Feeds. 26311_ &US0CKK5TXIWS,1%|%BF 26316_ RIF reveals location of phase wall. 26333_ System corrupted: Energy discharge (-30). 26338_ Beams of light sweep through the air. An alarm sounds. Map ----- +----------------------------------------------------+ | ?????????????????????????????????????????????????? | | ?????????????????????????????????????????????????? | | ?????????????????????????????????????????????????? | | ?????????????????????????????????????????????????? | | ?????????????????????????????????????????????????? | | ?????????????????????????????????????????????????? | | ?????????????????############????????????????????? | | ?????????????????# #""""#????????????????????? | | ?????????????????# "#????????????????????? | | ?????????????????# #""""#????????????????????? | | ?????????????????# ########????????????????????? | | ?????????????????# #???????????????????????????? | | ?????????????????# #???????????????????????????? | | ?????????????????# #???????????????????????????? | | ?????????????????# #???????????????????????????? | | ?????????????????# #???????????????????????????? | | ?????????????????# #???????????????????????????? | | ?????????????????# #???????????????????????????? | | ?????????????????# #???????????????????????????? | | ?????????????????# #???????????????????????????? | | ?????????????????# #???????????????????????????? | | ?????????????????# #######?????????????????????? | | ?????????????????# #?????????????????????? | | ?????????????????+ #?????????????????????? | | ?????????????????# #### #?????????????????????? | | ?????????????????# #??#@ #?????????????????????? | | ?????????????????# #??# g#???????????????????? | | ?????????????????# #??# g#???????????????????? | | ?????????????????# #??# g#???????????????????? | | ?????????????????# #??# ###???????????????????? | | ?????????????????# #??# #?????????????????????? | | ?????????????????# #??# #?????????????????????? | | ?????????????????# #??# #?????????????????????? | | ?????????????????# #??# #?????????????????????? | | ?????????????????# #??? ?????????????????????? | | ?????????????????# #??? ?????????????????????? | | ?????????????????# ???? ?????????????????????? | | ?????????s???????? ???? #?????????????????????? | | ?????????????????????????##??????????????????????? | | ?????????????????????????????????????????????????? | | ?????????????????????????????????????????????????? | | ?????????????????????????????????????????????????? | | ?????????????????????????????????????????????????? | | ?????????????????????????????????????????????????? | | ?????????????????????????????????????????????????? | | ?????????????????????????????????????????????????? | | ?????????????????????????????????????????????????? | | ?????????????????????????????????????????????????? | | ?????????????????????????????????????????????????? | | ?????????????????????????????????????????????????? | +----------------------------------------------------+ Best States ------------- Heat Dissipation 65 Energy Generation 36 Energy Capacity 700 Matter Stores 550 Matter Capacity 550 Sight Range 20 Terrain Scan Range 20 Terrain Scan Density 210 Armor Coverage 900 Resistance: KI 20 Resistance: TH 30 Resistance: EM 25 Point Defense Rating 80 Phase Shifting 5 Evasion (%) 50 Target Analysis 5 Recoil Reduction 4 Particle Charging 25 Offensive Hacking 14 Item Schematics ----------------- Datajack | -9/Materials | Scanalyzed Arm. Wheel | -8/Materials | Scanalyzed Hcp. Storage Unit | -8/Materials | Scanalyzed Adv. Treads | -8/Materials | Hacked Hacking Suite | -8/Materials | Hacked Shock Bomb Launcher | -8/Materials | Scanalyzed Remote Datajack | -7/Factory | Hacked Imp. Medium Armor Plating | -5/Factory | Scanalyzed Robot Schematics ------------------ None Fabricated ------------ Remote Datajack | x1 | -6/Factory Hacking Suite | x1 | -6/Factory I-47 Archangel | x1 | -5/Factory | Preloaded Hcp. Storage Unit | x1 | -5/Factory Biometal Heavy Treads | x2 | -3/Research | Preloaded Alien Tech Used ----------------- None Achievements -------------- Error 47 Challenges ------------ None Game ------ Seed ShrapnelImpulseBlaster Manual? 0 Play Time 03:35:59 Cumulative 304.1 hours Start 2020.08.07 @ 23:06:43 End 2020.08.08 @ 02:52:01 Sessions 1 Manual Loads 0 Difficulty Rogue Special Mode None Game No. 337 Rogue 337 Adventurer 0 Explorer 0 Win Type - Total 5 Types 2/1/1/1/0/0/0 Lore% 68 Gallery% 85 Achievement% 66 Wizard Run 0 Options --------- ASCII 0 Keyboard 0 Movement Numpad Keybinds 0 Fullscreen 1 Font 16/Terminus Map View 75x55 Tactical HUD 1 Map Filters NONE Filters NONE Steam 1 RUN: c61fcc16-e267-44a7-9b7d-ba6a12c85033